fUSD/lending_fUSD_20250530
["ID","MTS","AMOUNT","RATE_DAILY","PERIOD"]
[363064080,1748563872335,-1182.22,0.00022464,2]
[363064081,1748563872345,-2943.13,0.00022464,2]
[363064082,1748563872356,-785.44,0.00022464,2]
[363064083,1748563872365,-2038.23681798,0.00022464,2]
[363064084,1748563872377,-973.14958002,0.00022464,2]
[363064085,1748563872389,-268.153602,0.00022464,2]
[363064086,1748563872398,-4070.74,0.00022464,2]
[363064087,1748563872407,-946.68,0.00022464,2]
[363064088,1748563872416,-5497.75014917,0.00022464,2]
[363064089,1748563872428,-3138.01439002,0.00022464,2]
[363064090,1748563872440,-437.17546081,0.00022464,2]
[363064091,1748563872450,-6762.74506694,0.00022464,2]
[363064092,1748563872469,-5007.31493306,0.00022464,2]
[363064093,1748563872479,-508.58,0.00022464,2]
[363064094,1748563872489,-508.58,0.00022464,2]
[363064095,1748563872498,-508.58,0.00022464,2]
[363064096,1748563872508,-26503.00263276,0.00022464,2]
[363064097,1748563872519,-17213.39736724,0.00022464,2]
[363064098,1748563872529,-1878.49,0.00022464,2]
[363064099,1748563872538,-432.22,0.00022464,2]
[363064100,1748563872548,-10129.9,0.00022464,2]
[363064101,1748563872557,-2971.25554304,0.00022464,2]
[363064102,1748563872571,-97.68445696,0.00022464,2]
[363064103,1748563872580,-2269.07,0.00022464,2]
[363064104,1748563872591,-3461.51,0.00022464,2]
[363064105,1748563872600,-619.95,0.00022464,2]
[363064106,1748563872610,-13892.78554304,0.00022464,2]
[363064107,1748563872622,-348.16,0.00022464,2]
[363064108,1748563872633,-750.33156524,0.00022464,2]
[363064109,1748563873134,-569.1638466,0.00021917,2]
[363064110,1748563873144,-420.0,0.00021917,2]
[363064111,1748563873155,-610.8361534,0.00022464,2]
[363064112,1748563873167,-1560.29772958,0.00022464,2]
[363064113,1748563873177,-1860.64634696,0.00022464,2]
[363064114,1748563875357,-1595.61780358,0.00022464,2]
[363064115,1748563875441,-6591.9848582,0.00022464,2]
[363064116,1748563875451,-2029.85,0.00022464,2]
[363064117,1748563875460,-420.0,0.00022464,2]
[363064118,1748563875470,-1494.2479564,0.00022464,2]
[363064119,1748563875482,-123.9720436,0.00022464,2]
[363064120,1748563875492,-1809.0,0.00022464,2]
[363064121,1748563875502,-1771.37,0.00022464,2]
[363064122,1748563875512,-4588.59581459,0.00022464,2]
[363064123,1748563875524,-417.46418541,0.00022464,2]
[363064124,1748563875534,-1716.77,0.00022464,2]
[363064125,1748563875544,-774.93,0.00022464,2]
[363064126,1748563875554,-1889.46171904,0.00022464,2]
[363064127,1748563875567,-1607.80536814,0.00022464,2]
[363064128,1748563875580,-2313.24050053,0.00022464,2]
[363064129,1748563875606,-286.77359373,0.00022464,2]
[363064130,1748564003805,172.13,0.00025,90]
[363064131,1748564021272,-259.11763534,0.00019527,2]
[363064132,1748564024972,-153.35,0.00019527,2]
[363064133,1748564025136,3500.0,0.000251,120]
[363064134,1748564027527,-192.31822031,0.00019527,2]
[363064135,1748564029085,-200.0,0.00019527,2]
[363064136,1748564030758,-119.01414435,0.00019527,2]
[363064137,1748564110737,300.0,0.00025,120]
[363064138,1748564227073,2588.48019395,0.00025,60]
[363064140,1748564321676,158.3,0.00013699,2]
[363064141,1748564367784,3464.96797644,0.0002,5]
[363064142,1748564434470,-200.0,0.00020989,2]
[363064143,1748564434495,-50.0,0.00021042,2]
[363064144,1748564435987,-155.0,0.00021042,2]
[363064145,1748564436014,-200.0,0.00021087,2]
[363064146,1748564436037,-69.54711954,0.00021103,2]
[363064147,1748564438520,-267.50273047,0.00021103,2]
[363064148,1748564442437,-365.58529554,0.00020883,2]
[363064149,1748564443843,-241.39269087,0.00020883,2]
[363064150,1748564447133,-200.0,0.00020883,2]
[363064151,1748564449260,-59.07931859,0.00020883,2]
[363064152,1748564449285,-125.27128262,0.00021103,2]
[363064153,1748564453586,-151.31886737,0.00021103,2]
[363064154,1748564453612,-200.0,0.0002115,2]
[363064155,1748564453635,-185.75786686,0.00021203,2]
[363064156,1748564455635,-64.24213314,0.00021203,2]
[363064157,1748564455660,-94.30786686,0.00021404,2]
[363064158,1748564554488,-150.0,0.00021018,7]
[363064159,1748564554510,-7.83033948,0.00021104,2]
[363064160,1748564558812,-153.07500668,0.00021104,2]
[363064161,1748564560597,-192.83495319,0.00021104,2]
[363064162,1748564563273,-151.0,0.00021104,2]
[363064163,1748564565316,-301.8186638,0.00021104,2]
[363064164,1748564567970,-280.27913836,0.00021104,2]
[363064165,1748564571127,-154.1,0.00021104,2]
[363064166,1748564572693,-155.19615827,0.00021104,2]
[363064167,1748564574730,-154.62860952,0.00021104,2]
[363064168,1748564599338,500.0,0.00025099,120]
[363064169,1748564719420,-163.89,0.0002,2]
[363064170,1748564735739,16125.2315575,9e-05,2]
[363064171,1748564739360,300.0,8.999e-05,2]
[363064186,1748564874249,208.38986719,0.000181,2]
[363064191,1748564915548,419.999999,0.000151,2]
[363064207,1748565031655,-739.489561,0.00019999,2]
[363064208,1748565031667,-692.71166526,0.00019999,2]
[363064209,1748565031678,-309.93998458,0.00019999,2]
[363064210,1748565031690,-890.06001542,0.00019999,2]
[363064211,1748565031700,-221.0,0.00019999,2]
[363064212,1748565031710,-200.0,0.0002,2]
[363064213,1748565031721,-7997.396629,0.0002,2]
[363064214,1748565031743,-53521.02407678,0.0002,2]
[363064215,1748565031752,-279685.53269933,0.0002,2]
[363064216,1748565031764,-1126.32786316,0.0002,2]
[363064217,1748565031776,-598.20233049,0.0002,2]
[363064218,1748565031809,-3827.40151439,0.0002,2]
[363064219,1748565031820,-574.42573208,0.0002,2]
[363064220,1748565031832,-23392.74300006,0.0002,2]
[363064221,1748565031847,-1952.72595287,0.0002,2]
[363064222,1748565031876,-3088.97329327,0.0002,2]
[363064227,1748565031986,-3388.06447137,0.0002,2]
[363064229,1748565031998,-3011.25199959,0.0002,2]
[363064231,1748565032010,-771.58629939,0.0002,2]
[363064233,1748565032021,-3396.49966044,0.0002,2]
[363064235,1748565032032,-388.00883751,0.0002,2]
[363064257,1748565038038,-106158.1,0.0002,2]
[363064265,1748565038076,-2533.0656812,0.0002,2]
[363064268,1748565038087,-939.253565,0.0002,2]
[363064270,1748565038099,-2778.77764628,0.0002,2]
[363064272,1748565038111,-2800.42020895,0.0002,2]
[363064276,1748565038122,-2256.90207005,0.0002,2]
[363064279,1748565038143,-233901.68129555,0.0002,2]
[363064281,1748565038152,-161.41357888,0.00020402,2]
[363064283,1748565038161,-200.0,0.00020502,2]
[363064285,1748565038170,-200.0,0.00020503,2]
[363064287,1748565038180,-158.55,0.00020797,2]
[363064289,1748565038191,-161.41357888,0.000208,2]
[363064291,1748565038205,-1700.76,0.00021005,2]
[363064293,1748565038214,-174.1,0.00021009,2]
[363064295,1748565038223,-1000.0,0.00021016,2]
[363064297,1748565038233,-3646.4271307,0.00021104,2]
[363064299,1748565038242,-161.41357888,0.00021198,2]
[363064301,1748565038251,-900.0,0.000214,7]
[363064303,1748565038260,-63.99213314,0.00021404,2]
[363064305,1748565038270,-1900.0,0.000215,7]
[363064307,1748565038279,-1229.85970811,0.000215,2]
[363064309,1748565038289,-161.41357888,0.00021596,2]
[363064311,1748565038298,-2900.0,0.000216,7]
[363064313,1748565038308,-175.2,0.00021647,2]
[363064315,1748565038318,-3900.0,0.000217,7]
[363064317,1748565038327,-175.2,0.00021756,2]
[363064319,1748565038336,-500.0,0.0002178,2]
[363064321,1748565038348,-923.8,0.00021791,2]
[363064323,1748565038357,-4900.0,0.000218,7]
[363064325,1748565038367,-207.4,0.00021804,2]
[363064327,1748565038376,-8800.0,0.00021817,2]
[363064329,1748565038385,-1990.37221365,0.00021817,2]
[363064331,1748565038394,-156.25191989,0.00021817,2]
[363064333,1748565038403,-500.00051981,0.00021817,2]
[363064335,1748565038413,-222.49935802,0.00021817,2]
[363064337,1748565038423,-1680.0,0.00021881,2]
[363064339,1748565038432,-900.0,0.000219,7]
[363064341,1748565038441,-151.0,0.00021904,2]
[363064343,1748565038450,-1115.157653,0.00021904,2]
[363064345,1748565038460,-151.59,0.00021907,2]
[363064347,1748565038469,-683.503,0.00021916,2]
[363064349,1748565038479,-420.0,0.00021917,2]
[363064351,1748565038489,-420.0,0.00021917,2]
[363064353,1748565038498,-424.24082769,0.00021917,2]
[363064355,1748565038507,-420.0,0.00021917,2]
[363064357,1748565038517,-420.0,0.00021917,2]
[363064359,1748565038527,-420.0,0.00021917,2]
[363064361,1748565038537,-420.0,0.00021917,2]
[363064363,1748565038546,-423.06612579,0.00021917,2]
[363064365,1748565038556,-397.30469618,0.00021917,2]
[363064367,1748565038565,-420.0,0.00021917,2]
[363064369,1748565038575,-420.0,0.00021917,2]
[363064371,1748565038584,-420.0,0.00021917,2]
[363064373,1748565038594,-420.0,0.00021917,2]
[363064375,1748565038604,-420.0,0.00021917,2]
[363064377,1748565038613,-425.76419425,0.00021917,2]
[363064379,1748565038623,-420.0,0.00021917,2]
[363064381,1748565038633,-420.0,0.00021917,2]
[363064383,1748565038642,-362.8634621,0.00021917,2]
[363064385,1748565038651,-420.69354359,0.00021917,2]
[363064387,1748565038660,-217.01777814,0.00021917,2]
[363064389,1748565038668,-421.09985088,0.00021917,2]
[363064391,1748565038677,-420.0,0.00021917,2]
[363064393,1748565038686,-758.61,0.00021917,2]
[363064395,1748565038695,-420.0,0.00021917,2]
[363064397,1748565038705,-420.0,0.00021917,2]
[363064399,1748565038714,-420.0,0.00021917,2]
[363064401,1748565038723,-420.0,0.00021917,2]
[363064403,1748565038733,-420.0,0.00021917,2]
[363064405,1748565038743,-420.0,0.00021917,2]
[363064407,1748565038752,-420.0,0.00021917,2]
[363064409,1748565038762,-420.0,0.00021917,2]
[363064411,1748565038771,-420.0,0.00021917,2]
[363064413,1748565038780,-420.0,0.00021917,2]
[363064415,1748565038789,-420.0,0.00021917,2]
[363064417,1748565038799,-481.47,0.00021917,2]
[363064419,1748565038808,-420.0,0.00021917,2]
[363064421,1748565038817,-420.0,0.00021917,2]
[363064423,1748565038826,-420.0,0.00021917,2]
[363064425,1748565038835,-450.16,0.00021917,2]
[363064427,1748565038847,-179.12452787,0.00021917,2]
[363064429,1748565038856,-420.0,0.00021917,2]
[363064431,1748565038866,-420.0,0.00021917,2]
[363064433,1748565038876,-430.02249561,0.00021917,2]
[363064435,1748565038885,-420.0,0.00021917,2]
[363064437,1748565038895,-420.0,0.00021917,2]
[363064439,1748565038904,-420.0,0.00021917,2]
[363064441,1748565038914,-420.0,0.00021917,2]
[363064443,1748565038923,-481.68,0.00021917,2]
[363064445,1748565038932,-420.0,0.00021917,2]
[363064447,1748565038942,-420.0,0.00021917,2]
[363064449,1748565038951,-420.0,0.00021917,2]
[363064451,1748565038960,-420.0,0.00021917,2]
[363064453,1748565038969,-420.0,0.00021917,2]
[363064455,1748565038979,-420.0,0.00021917,2]
[363064457,1748565038988,-464.44,0.00021917,2]
[363064459,1748565038997,-420.0,0.00021917,2]
[363064461,1748565039006,-420.0,0.00021917,2]
[363064463,1748565039016,-420.0,0.00021917,2]
[363064465,1748565039024,-513.8286642,0.00021917,2]
[363064467,1748565039033,-420.0,0.00021917,2]
[363064469,1748565039042,-420.0,0.00021917,2]
[363064471,1748565039052,-420.0,0.00021917,2]
[363064473,1748565039061,-472.07,0.00021917,2]
[363064475,1748565039070,-975.47,0.00021917,2]
[363064477,1748565039079,-420.0,0.00021917,2]
[363064478,1748565039090,-420.0,0.00021917,2]
[363064481,1748565039100,-519.37,0.00021917,2]
[363064483,1748565039109,-420.0,0.00021917,2]
[363064513,1748565039384,-420.0,0.00021917,2]
[363064516,1748565039399,-420.0,0.00021917,2]
[363064518,1748565039409,-420.0,0.00021917,2]
[363064520,1748565039418,-420.0,0.00021917,2]
[363064522,1748565039427,-433.66913724,0.00021917,2]
[363064525,1748565039436,-536.96513782,0.00021917,2]
[363064527,1748565039446,-420.0,0.00021917,2]
[363064530,1748565039455,-420.0,0.00021917,2]
[363064532,1748565039464,-420.0,0.00021917,2]
[363064534,1748565039473,-459.15,0.00021917,2]
[363064536,1748565039482,-420.0,0.00021917,2]
[363064538,1748565039491,-420.0,0.00021917,2]
[363064540,1748565039501,-420.0,0.00021917,2]
[363064542,1748565039511,-420.0,0.00021917,2]
[363064544,1748565039521,-420.0,0.00021917,2]
[363064546,1748565039535,-659.29,0.00021917,2]
[363064548,1748565039545,-425.03920187,0.00021917,2]
[363064550,1748565039554,-420.0,0.00021917,2]
[363064552,1748565039563,-259.71,0.00021917,2]
[363064554,1748565039572,-521.5,0.00021917,2]
[363064556,1748565039582,-1211.38,0.00021917,2]
[363064558,1748565039593,-420.0,0.00021917,2]
[363064561,1748565039602,-420.0,0.00021917,2]
[363064563,1748565039612,-491.92,0.00021917,2]
[363064565,1748565039621,-420.0,0.00021917,2]
[363064567,1748565039631,-420.0,0.00021917,2]
[363064569,1748565039640,-420.0,0.00021917,2]
[363064571,1748565039650,-420.0,0.00021917,2]
[363064572,1748565039659,-420.0,0.00021917,2]
[363064574,1748565039669,-420.0,0.00021917,2]
[363064577,1748565039679,-585.36,0.00021917,2]
[363064579,1748565039690,-420.0,0.00021917,2]
[363064581,1748565039699,-420.0,0.00021917,2]
[363064583,1748565039709,-420.0,0.00021917,2]
[363064585,1748565039718,-420.0,0.00021917,2]
[363064587,1748565039727,-445.99298664,0.00021917,2]
[363064589,1748565039737,-420.0,0.00021917,2]
[363064591,1748565039746,-420.0,0.00021917,2]
[363064593,1748565039755,-420.0,0.00021917,2]
[363064595,1748565039765,-420.0,0.00021917,2]
[363064597,1748565039775,-420.0,0.00021917,2]
[363064599,1748565039784,-420.0,0.00021917,2]
[363064601,1748565039794,-320.6406043,0.00021917,2]
[363064603,1748565039809,-420.0,0.00021917,2]
[363064605,1748565039819,-420.0,0.00021917,2]
[363064607,1748565039829,-420.0,0.00021917,2]
[363064609,1748565039841,-420.0,0.00021917,2]
[363064611,1748565039851,-420.0,0.00021917,2]
[363064613,1748565039861,-420.0,0.00021917,2]
[363064615,1748565039871,-420.0,0.00021917,2]
[363064617,1748565039880,-419.11531115,0.00021917,2]
[363064619,1748565039890,-528.35,0.00021917,2]
[363064621,1748565039899,-457.1,0.00021917,2]
[363064623,1748565039909,-420.0,0.00021917,2]
[363064625,1748565039918,-420.0,0.00021917,2]
[363064627,1748565039927,-420.0,0.00021917,2]
[363064629,1748565039936,-420.0,0.00021917,2]
[363064631,1748565039946,-420.0,0.00021917,2]
[363064633,1748565039955,-420.0,0.00021917,2]
[363064635,1748565039964,-336.0524652,0.00021917,2]
[363064636,1748565039973,-420.0,0.00021917,2]
[363064639,1748565039983,-420.0,0.00021917,2]
[363064640,1748565039992,-420.0,0.00021917,2]
[363064642,1748565040001,-420.0,0.00021917,2]
[363064644,1748565040011,-300.0,0.00021917,2]
[363064646,1748565040020,-420.0,0.00021917,2]
[363064648,1748565040029,-420.0,0.00021917,2]
[363064650,1748565040038,-861.29,0.00021917,2]
[363064652,1748565040048,-420.0,0.00021917,2]
[363064654,1748565040057,-420.0,0.00021917,2]
[363064656,1748565040068,-420.0,0.00021917,2]
[363064658,1748565040077,-420.0,0.00021917,2]
[363064660,1748565040087,-420.0,0.00021917,2]
[363064663,1748565040098,-420.0,0.00021917,2]
[363064665,1748565040106,-420.0,0.00021917,2]
[363064667,1748565040116,-420.0,0.00021917,2]
[363064669,1748565040125,-420.0,0.00021917,2]
[363064671,1748565040134,-444.71,0.00021917,2]
[363064673,1748565040144,-420.0,0.00021917,2]
[363064674,1748565040153,-169.52451393,0.00021917,2]
[363064676,1748565040163,-420.0,0.00021917,2]
[363064679,1748565040174,-420.0,0.00021917,2]
[363064681,1748565040184,-624.7,0.00021917,2]
[363064682,1748565040198,-420.0,0.00021917,2]
[363064684,1748565040208,-420.0,0.00021917,2]
[363064687,1748565040219,-420.0,0.00021917,2]
[363064689,1748565040229,-420.0,0.00021917,2]
[363064691,1748565040239,-420.0,0.00021917,2]
[363064693,1748565040249,-420.0,0.00021917,2]
[363064695,1748565040259,-580.97,0.00021917,2]
[363064697,1748565040275,-420.0,0.00021917,2]
[363064699,1748565040285,-420.0,0.00021917,2]
[363064701,1748565040294,-484.42938057,0.00021917,2]
[363064703,1748565040305,-420.0,0.00021917,2]
[363064705,1748565040315,-420.0,0.00021917,2]
[363064707,1748565040325,-420.0,0.00021917,2]
[363064709,1748565040336,-420.0,0.00021917,2]
[363064711,1748565040349,-420.0,0.00021917,2]
[363064713,1748565040360,-420.0,0.00021917,2]
[363064715,1748565040369,-1714.068692,0.00021917,2]
[363064717,1748565040378,-1601.54287,0.00021917,2]
[363064719,1748565040387,-420.0,0.00021917,2]
[363064721,1748565040396,-785.71,0.00021917,2]
[363064723,1748565040406,-420.0,0.00021917,2]
[363064725,1748565040415,-420.0,0.00021917,2]
[363064727,1748565040425,-420.0,0.00021917,2]
[363064729,1748565040435,-420.0,0.00021917,2]
[363064731,1748565040444,-420.0,0.00021917,2]
[363064733,1748565040453,-420.0,0.00021917,2]
[363064735,1748565040463,-420.0,0.00021917,2]
[363064737,1748565040472,-420.0,0.00021917,2]
[363064739,1748565040481,-1508.79,0.00021917,2]
[363064741,1748565040490,-500.0,0.00021917,2]
[363064743,1748565040499,-420.0,0.00021917,2]
[363064745,1748565040509,-708.81,0.00021917,2]
[363064747,1748565040519,-420.0,0.00021917,2]
[363064749,1748565040529,-420.0,0.00021917,2]
[363064751,1748565040538,-420.0,0.00021917,2]
[363064753,1748565040548,-420.0,0.00021917,2]
[363064755,1748565040557,-420.0,0.00021917,2]
[363064756,1748565040567,-420.0,0.00021917,2]
[363064757,1748565040577,-420.0,0.00021917,2]
[363064758,1748565040585,-420.0,0.00021917,2]
[363064759,1748565040600,-420.0,0.00021917,2]
[363064760,1748565040609,-420.0,0.00021917,2]
[363064761,1748565040619,-420.0,0.00021917,2]
[363064762,1748565040629,-160.157085,0.00021917,2]
[363064763,1748565040639,-420.0,0.00021917,2]
[363064764,1748565040649,-420.0,0.00021917,2]
[363064765,1748565040658,-420.0,0.00021917,2]
[363064766,1748565040668,-420.0,0.00021917,2]
[363064767,1748565040677,-420.0,0.00021917,2]
[363064768,1748565040687,-420.0,0.00021917,2]
[363064770,1748565040697,-420.0,0.00021917,2]
[363064772,1748565040708,-174.9725455,0.00021917,2]
[363064774,1748565040717,-420.0,0.00021917,2]
[363064776,1748565040727,-420.0,0.00021917,2]
[363064778,1748565040737,-420.0,0.00021917,2]
[363064780,1748565040747,-420.0,0.00021917,2]
[363064782,1748565040756,-420.0,0.00021917,2]
[363064784,1748565040767,-420.0,0.00021917,2]
[363064786,1748565040776,-420.0,0.00021917,2]
[363064788,1748565040786,-471.92,0.00021917,2]
[363064790,1748565040795,-420.0,0.00021917,2]
[363064792,1748565040806,-420.0,0.00021917,2]
[363064794,1748565040815,-420.0,0.00021917,2]
[363064796,1748565040825,-420.0,0.00021917,2]
[363064798,1748565040834,-435.41087886,0.00021917,2]
[363064800,1748565040847,-420.0,0.00021917,2]
[363064802,1748565040856,-420.0,0.00021917,2]
[363064804,1748565040866,-420.0,0.00021917,2]
[363064806,1748565040875,-420.0,0.00021917,2]
[363064808,1748565040885,-1279.69,0.00021917,2]
[363064810,1748565040895,-505.20144136,0.00021917,2]
[363064812,1748565040904,-420.0,0.00021917,2]
[363064814,1748565040914,-420.0,0.00021917,2]
[363064816,1748565040923,-420.0,0.00021917,2]
[363064818,1748565040932,-420.0,0.00021917,2]
[363064820,1748565040942,-420.0,0.00021917,2]
[363064822,1748565040951,-420.0,0.00021917,2]
[363064824,1748565040960,-558.09,0.00021917,2]
[363064826,1748565040970,-420.0,0.00021917,2]
[363064828,1748565040979,-481.64,0.00021917,2]
[363064830,1748565040989,-420.0,0.00021917,2]
[363064832,1748565040998,-420.0,0.00021917,2]
[363064834,1748565041007,-407.61155693,0.00021917,2]
[363064836,1748565041016,-420.0,0.00021917,2]
[363064838,1748565041026,-483.43,0.00021917,2]
[363064840,1748565041035,-420.0,0.00021917,2]
[363064842,1748565041044,-787.52,0.00021917,2]
[363064844,1748565041053,-443.17396323,0.00021917,2]
[363064846,1748565041063,-420.0,0.00021917,2]
[363064848,1748565041072,-420.0,0.00021917,2]
[363064850,1748565041082,-420.0,0.00021917,2]
[363064852,1748565041093,-420.0,0.00021917,2]
[363064854,1748565041102,-420.0,0.00021917,2]
[363064856,1748565041111,-420.0,0.00021917,2]
[363064858,1748565041121,-420.0,0.00021917,2]
[363064860,1748565041130,-420.0,0.00021917,2]
[363064862,1748565041139,-773.39,0.00021917,2]
[363064864,1748565041148,-420.0,0.00021917,2]
[363064866,1748565041158,-420.0,0.00021917,2]
[363064868,1748565041167,-1352.39,0.00021917,2]
[363064870,1748565041177,-420.0,0.00021917,2]
[363064872,1748565041186,-420.0,0.00021917,2]
[363064874,1748565041199,-683.76,0.00021917,2]
[363064876,1748565041210,-420.0,0.00021917,2]
[363064878,1748565041219,-420.0,0.00021917,2]
[363064880,1748565041229,-420.0,0.00021917,2]
[363064882,1748565041239,-422.85972222,0.00021917,2]
[363064884,1748565041248,-420.0,0.00021917,2]
[363064886,1748565041257,-436.98754532,0.00021917,2]
[363064888,1748565041268,-423.40748256,0.00021917,2]
[363064890,1748565041278,-488.21,0.00021917,2]
[363064892,1748565041287,-420.0,0.00021917,2]
[363064894,1748565041297,-423.65598072,0.00021917,2]
[363064896,1748565041306,-516.85,0.00021917,2]
[363064898,1748565041315,-420.0,0.00021917,2]
[363064900,1748565041327,-420.0,0.00021917,2]
[363064902,1748565041336,-421.47576786,0.00021917,2]
[363064904,1748565041348,-420.0,0.00021917,2]
[363064906,1748565041358,-516.2,0.00021917,2]
[363064908,1748565041367,-420.0,0.00021917,2]
[363064910,1748565041376,-691.58,0.00021917,2]
[363064913,1748565041386,-1418.75,0.00021917,2]
[363064915,1748565041395,-420.0,0.00021917,2]
[363064917,1748565041405,-420.0,0.00021917,2]
[363064919,1748565041415,-420.0,0.00021917,2]
[363064921,1748565041423,-421.84590564,0.00021917,2]
[363064923,1748565041433,-368.62439043,0.00021917,2]
[363064924,1748565041442,-1015.55,0.00021917,2]
[363064927,1748565041451,-420.0,0.00021917,2]
[363064929,1748565041461,-420.0,0.00021917,2]
[363064931,1748565041470,-420.0,0.00021917,2]
[363064933,1748565041479,-420.0,0.00021917,2]
[363064935,1748565041488,-420.0,0.00021917,2]
[363064937,1748565041499,-569.43,0.00021917,2]
[363064939,1748565041508,-420.0,0.00021917,2]
[363064941,1748565041517,-448.52,0.00021917,2]
[363064943,1748565041526,-420.0,0.00021917,2]
[363064945,1748565041535,-445.53,0.00021917,2]
[363064947,1748565041544,-513.45485487,0.00021917,2]
[363064949,1748565041553,-420.0,0.00021917,2]
[363064951,1748565041563,-515.7,0.00021917,2]
[363064953,1748565041572,-420.0,0.00021917,2]
[363064955,1748565041581,-486.34,0.00021917,2]
[363064957,1748565041592,-420.0,0.00021917,2]
[363064959,1748565041601,-1668.75,0.00021917,2]
[363064961,1748565041611,-598.65,0.00021917,2]
[363064963,1748565041620,-1228.35,0.00021917,2]
[363064965,1748565041629,-330.61783498,0.00021917,2]
[363064967,1748565041639,-420.0,0.00021917,2]
[363064969,1748565041648,-471.65,0.00021917,2]
[363064971,1748565041657,-723.58,0.00021917,2]
[363064973,1748565041667,-420.0,0.00021917,2]
[363064975,1748565041675,-420.0,0.00021917,2]
[363064977,1748565041685,-420.0,0.00021917,2]
[363064979,1748565041694,-1002.82,0.00021917,2]
[363064981,1748565041703,-420.0,0.00021917,2]
[363064983,1748565041712,-420.0,0.00021917,2]
[363064985,1748565041722,-420.0,0.00021917,2]
[363064987,1748565041731,-1121.01,0.00021917,2]
[363064989,1748565041740,-420.0,0.00021917,2]
[363064991,1748565041749,-1000.0,0.00021917,2]
[363064993,1748565041761,-420.0,0.00021917,2]
[363064995,1748565041770,-420.0,0.00021917,2]
[363064997,1748565041780,-420.0,0.00021917,2]
[363064999,1748565041789,-420.0,0.00021917,2]
[363065001,1748565041799,-420.0,0.00021917,2]
[363065003,1748565041810,-420.0,0.00021917,2]
[363065005,1748565041820,-420.0,0.00021917,2]
[363065007,1748565041829,-2077.3,0.00021917,2]
[363065009,1748565041838,-420.0,0.00021917,2]
[363065011,1748565041848,-493.42,0.00021917,2]
[363065013,1748565041857,-420.0,0.00021917,2]
[363065016,1748565041867,-1098.24,0.00021917,2]
[363065018,1748565041876,-420.0,0.00021917,2]
[363065019,1748565041885,-623.56,0.00021917,2]
[363065022,1748565041895,-420.0,0.00021917,2]
[363065024,1748565041904,-420.0,0.00021917,2]
[363065026,1748565041914,-538.83,0.00021917,2]
[363065028,1748565041923,-504.88,0.00021917,2]
[363065030,1748565041932,-474.3,0.00021917,2]
[363065032,1748565041941,-420.0,0.00021917,2]
[363065033,1748565041950,-464.37,0.00021917,2]
[363065035,1748565041960,-420.0,0.00021917,2]
[363065038,1748565041969,-420.0,0.00021917,2]
[363065040,1748565041979,-477.38,0.00021917,2]
[363065042,1748565041988,-1160.52,0.00021917,2]
[363065044,1748565041997,-420.0,0.00021917,2]
[363065046,1748565042006,-420.0,0.00021917,2]
[363065048,1748565042016,-1619.91,0.00021917,2]
[363065050,1748565042025,-454.08,0.00021917,2]
[363065052,1748565042034,-543.8,0.00021917,2]
[363065054,1748565042043,-1343.73,0.00021917,2]
[363065056,1748565042052,-507.78215716,0.00021917,2]
[363065058,1748565042061,-686.44,0.00021917,2]